Cogmind - Beta 11.1 @@@ ROGUE MODE // 2022.04.30 @ 00:26:42 Player: Olga Result: Self-destructed Performance ------------- Evolutions (2) 1000 Regions Visited (5) 1000 Robots Destroyed (0) 0 Value Destroyed (0) 0 Prototype IDs (1) 20 Alien Tech Used (0) 0 Bonus (470) 470 TOTAL SCORE: 2490 Bonus ------- Pacifist 470 Cogmind --------- Core Integrity 220/550 Matter 261/300 Energy 100/100 System Corruption 0% Temperature Cool (9) Movement Core (100) Ox1 Location -8/Materials Parts ------- > --- POWER (1) -------- (None) > --- PROPULSION (2) --- (None) > --- UTILITY (6) ------ Advanced Visual Processing Unit > --- WEAPON (2) ------- Great Maul > --- INVENTORY (5) ---- Compact Wheel Small Storage Unit Splice Drone Bay (6/6) Assault Rifle Peak State ------------ > --- POWER ------------ Light Ion Engine > --- PROPULSION ------- Improved Hover Unit Improved Hover Unit > --- UTILITY ---------- Advanced Visual Processing Unit > --- WEAPON ----------- Great Maul > --- INVENTORY -------- Compact Wheel Small Storage Unit Splice Drone Bay Assault Rifle [Rating: 12] Favorites ----------- Power Light Ion Engine Engine Light Ion Engine Propulsion Improved Hover Unit Hover Unit Improved Hover Unit Utility Light Armor Plating Device Splice Drone Bay Processor Advanced Visual Processing Unit Protection Light Armor Plating Weapon Great Maul Impact Weapon Great Maul Build | -11 -10 -10 -9 -9 -8 ------- Run | Scr Mat Min Mat Min Mat Slots Evolved 4 | . . . 2 . 2 Power . | . . . . . . Propulsion . | . . . . . . Utility 4 | . . . 2 . 2 Weapon . | . . . . . . Parts Attached 8 | . 1 . . 2 5 Power 1 | . . . . . 1 Engine 1 | . . . . . 1 Core . | . . . . . . Reactor . | . . . . . . Propulsion 2 | . . . . . 2 Treads . | . . . . . . Leg . | . . . . . . Wheel . | . . . . . . Hover 2 | . . . . . 2 Flight . | . . . . . . Utility 4 | . 1 . . 2 1 Device 1 | . . . . 1 . Storage . | . . . . . . Processor 1 | . . . . . 1 Hackware . | . . . . . . Protection 2 | . 1 . . 1 . Artifact . | . . . . . . Weapon 1 | . . . . . 1 Energy Gun . | . . . . . . Energy Cannon . | . . . . . . Ballistic Gun . | . . . . . . Ballistic Cannon . | . . . . . . Launcher . | . . . . . . Special Weapon . | . . . . . . Impact Weapon 1 | . . . . . 1 Slashing Weapon . | . . . . . . Piercing Weapon . | . . . . . . Special Melee Weapon . | . . . . . . Unidentified Prototypes 1 | . . . . 1 . Parts Lost 5 | . . . . 1 4 Power 1 | . . . . . 1 Propulsion 2 | . . . . . 2 Utility 2 | . . . . 1 1 Weapon . | . . . . . . Highest Loss Streak 3 | . . . . 1 3 To Critical Strikes . | . . . . . . Average Slot Usage (%) 10 | . 14 14 . 6 9 Hover 1 | . . . . . 2 Processor 1 | . . . . . 2 Protection 7 | . 14 14 . 6 3 Naked Turns 79 | . 3 . . 33 43 Heaviest Build 7 | . 3 3 3 3 7 Greatest Support 14 | 3 3 3 3 3 14 Greatest Overweight (x) 2 | . . . . . 2 Average Overweight (x) . | . . . . . . Largest Inventory Capacity 5 | 5 5 5 5 5 5 Average Capacity 5 | 5 5 5 5 5 5 Most Carried 5 | 5 5 5 5 5 5 Average Carried 4 | 4 5 5 5 4 4 Final Capacity 5 | 5 5 5 5 5 5 Final Carried 5 | 5 5 5 5 5 4 Class Distribution -------------------- 100% | Mutant Dominant Class ---------------- Mutant | -10/Materials Mutant | -10/Mines Mutant | -9/Materials Mutant | -9/Mines Mutant | -8/Materials Resources | -11 -10 -10 -9 -9 -8 ----------- Run | Scr Mat Min Mat Min Mat Matter Collected 192 | 159 . . . 33 . Remotely . | . . . . . . Salvage Created . | . . . . . . Parts . | . . . . . . Haulers Intercepted . | . . . . . . Recyclers Shooed . | . . . . . . Parts Field Recycled . | . . . . . . Retrieved Matter . | . . . . . . Parts Self-Destructed . | . . . . . . Prevented . | . . . . . . Kills | -11 -10 -10 -9 -9 -8 ------- Run | Scr Mat Min Mat Min Mat Combat Hostiles Destroyed . | . . . . . . Classes Destroyed . | . . . . . . Best Kill Streak . | . . . . . . Combat Bots Only . | . . . . . . Max Kills in Single Turn . | . . . . . . Gunslinging . | . . . . . . Exploded . | . . . . . . Melee . | . . . . . . Uniques/NPCs Destroyed . | . . . . . . Combat | -11 -10 -10 -9 -9 -8 -------- Run | Scr Mat Min Mat Min Mat Damage Taken 826 | . 140 33 . 52 601 Core 443 | . 76 17 . 20 330 Absorbed by Shields . | . . . . . . Core Remaining (%) 85 | 100 . 62 . 95 . Volleys Fired . | . . . . . . Largest . | . . . . . . Hottest . | . . . . . . Shots Fired . | . . . . . . Gun . | . . . . . . Cannon . | . . . . . . Launcher . | . . . . . . Special . | . . . . . . Kinetic . | . . . . . . Thermal . | . . . . . . Explosive . | . . . . . . Electromagnetic . | . . . . . . Robot Hit Streak . | . . . . . . Robot Miss Streak . | . . . . . . Penetration Max . | . . . . . . Secondary Targets . | . . . . . . Shots Hit Robots . | . . . . . . Core Hits 1 | . . . . . 1 Critical Kills . | . . . . . . Critical Parts Destroyed . | . . . . . . Critical Strikes . | . . . . . . Melee Attacks . | . . . . . . Impact . | . . . . . . Slashing . | . . . . . . Piercing . | . . . . . . Sneak Attacks . | . . . . . . Combat Hostiles . | . . . . . . Follow-up Attacks . | . . . . . . Damage Inflicted 24 | . . . . . 24 Guns . | . . . . . . Cannons . | . . . . . . Explosions . | . . . . . . Melee . | . . . . . . Ramming 24 | . . . . . 24 Kinetic . | . . . . . . Thermal . | . . . . . . Explosive . | . . . . . . Electromagnetic . | . . . . . . Impact . | . . . . . . Slashing . | . . . . . . Piercing . | . . . . . . Highest Corruption . | . . . . . . Average Corruption . | . . . . . . Corruption Purged . | . . . . . . Corruption Blocked . | . . . . . . Overload Shots . | . . . . . . Overflow Damage . | . . . . . . Projectiles . | . . . . . . Explosions . | . . . . . . Melee . | . . . . . . Knockbacks . | . . . . . . Impact . | . . . . . . Kinetic . | . . . . . . Secondary . | . . . . . . Self-Inflicted Damage 11 | . . . . . 11 Shots . | . . . . . . Rammed 6 | . . . . . 6 Targets Rammed 6 | . . . . . 6 Kicked . | . . . . . . Crushed . | . . . . . . Highest Temperature . | . . . . . . Average Temperature . | . . . . . . Received Heat Transfer 327 | . 54 . . 21 252 Siege Activations . | . . . . . . Robots Corrupted . | . . . . . . Combat Hostiles . | . . . . . . Parts Fried . | . . . . . . Impact Corruptions . | . . . . . . Robots Melted . | . . . . . . Combat Hostiles . | . . . . . . Parts Melted . | . . . . . . Heat Transferred . | . . . . . . Parts Sabotaged . | . . . . . . Parts Stolen . | . . . . . . Parts Stripped . | . . . . . . Power Chain Reactions . | . . . . . . Missiles Intercepted . | . . . . . . Alert | -11 -10 -10 -9 -9 -8 ------- Run | Scr Mat Min Mat Min Mat Peak Influence 105 | . 105 40 15 15 100 Initial 40 | . . 40 15 5 5 Average 31 | . 16 40 15 . 58 Maximum Alert Level . | . . . . . . Low Security (%) 100 | 100 100 100 100 100 100 Level 1 . | . . . . . . Level 2 . | . . . . . . Level 3 . | . . . . . . Level 4 . | . . . . . . Level 5 . | . . . . . . High Security . | . . . . . . Max Security . | . . . . . . Squads Dispatched 4 | . 1 . . . 3 Investigation 1 | . . . . . 1 Extermination . | . . . . . . Reinforcement 3 | . 1 . . . 2 Assault . | . . . . . . Garrison . | . . . . . . Intercept . | . . . . . . Searches Triggered . | . . . . . . Construction Impeded . | . . . . . . Haulers Reinforced . | . . . . . . Active Scanning Responses . | . . . . . . Cargo Convoy Interrupts . | . . . . . . Stealth | -11 -10 -10 -9 -9 -8 --------- Run | Scr Mat Min Mat Min Mat Distress Signals 1 | . . . . . 1 Communications Jammed . | . . . . . . Distress Signals . | . . . . . . Times Spotted 36 | . 11 3 . 7 15 Peak Tracking Total 13 | . 10 3 . 4 13 Tactical Retreats 2 | . 1 . . . 1 Traps | -11 -10 -10 -9 -9 -8 ------- Run | Scr Mat Min Mat Min Mat Traps Triggered 1 | . . . . . 1 Indirectly . | . . . . . . Trap Hack Attempts . | . . . . . . Triggered . | . . . . . . Disarmed . | . . . . . . Reprogrammed . | . . . . . . Reused . | . . . . . . Traps Extracted . | . . . . . . Installed . | . . . . . . Triggered . | . . . . . . Machines | -11 -10 -10 -9 -9 -8 ---------- Run | Scr Mat Min Mat Min Mat Machines Disabled . | . . . . . . Max in Single Turn . | . . . . . . Garrison Access 1 | . . . . . 1 Machines Sabotaged . | . . . . . . Garrisons Compromised . | . . . . . . Overloaded Fab Kills . | . . . . . . Hacking | -11 -10 -10 -9 -9 -8 --------- Run | Scr Mat Min Mat Min Mat Machines Accessed 7 | . 3 . . 1 3 Terminals 5 | . 3 . . . 2 Fabricators . | . . . . . . Repair Stations . | . . . . . . Recycling Units . | . . . . . . Scanalyzers . | . . . . . . Garrison Access 1 | . . . . . 1 Total Hacks 13 | . 7 . . 1 5 Successful 2 | . . . . 1 1 Failed 11 | . 7 . . . 4 Catastrophic 2 | . 1 . . . 1 Database Lockouts . | . . . . . . Manual 8 | . 5 . . . 3 Terminals 11 | . 7 . . . 4 Fabricators . | . . . . . . Repair Stations . | . . . . . . Recycling Units . | . . . . . . Scanalyzers . | . . . . . . Garrison Access 1 | . . . . . 1 Terminal Hacks 1 | . . . . 1 . Open Door 1 | . . . . 1 . Fabricator Hacks . | . . . . . . Repair Station Hacks . | . . . . . . Recycling Unit Hacks . | . . . . . . Scanalyzer . | . . . . . . Garrison Access Hacks 1 | . . . . . 1 Seal Access 1 | . . . . . 1 Unauthorized Hacks . | . . . . . . Terminals . | . . . . . . Fabricators . | . . . . . . Repair Stations . | . . . . . . Recycling Units . | . . . . . . Scanalyzers . | . . . . . . Garrison Access . | . . . . . . Data Cores Recovered . | . . . . . . Used . | . . . . . . Hacking Detections 5 | . 3 . . . 2 Full Trace Events 3 | . 2 . . . 1 Feedback Events . | . . . . . . Feedback Blocked . | . . . . . . Robot Schematics Acquired . | . . . . . . Robots Built . | . . . . . . Authchips . | . . . . . . Time . | . . . . . . Total Robot Build Rating . | . . . . . . Part Schematics Acquired . | . . . . . . Parts Built . | . . . . . . Authchips . | . . . . . . Time . | . . . . . . Total Part Build Rating . | . . . . . . Parts Repaired . | . . . . . . Time . | . . . . . . Parts Recycled . | . . . . . . Recycled Matter . | . . . . . . Retrieved Matter . | . . . . . . Retrieved Components . | . . . . . . Parts Scanalyzed . | . . . . . . Part Schematics Acquired . | . . . . . . Parts Damaged . | . . . . . . Bothacking | -11 -10 -10 -9 -9 -8 ------------ Run | Scr Mat Min Mat Min Mat Used RIF Installer . | . . . . . . Robots Hacked . | . . . . . . Non-combat . | . . . . . . Combat . | . . . . . . Robot Hacks Applied . | . . . . . . Relay Couplers Released . | . . . . . . Fabnet Peak Effective % . | . . . . . . Robots Rewired . | . . . . . . Allies Hacked . | . . . . . . Hacks Repelled . | . . . . . . Allies | -11 -10 -10 -9 -9 -8 -------- Run | Scr Mat Min Mat Min Mat Total Allies . | . . . . . . Largest Group . | . . . . . . Highest-Rated Group . | . . . . . . Highest-Rated Ally . | . . . . . . Total Orders . | . . . . . . Ally Attacks . | . . . . . . Total Damage . | . . . . . . Kills . | . . . . . . Allies Corrupted . | . . . . . . Allies Melted . | . . . . . . Intel | -11 -10 -10 -9 -9 -8 ------- Run | Scr Mat Min Mat Min Mat Robot Analysis Total . | . . . . . . Derelict Logs Recovered . | . . . . . . Drone Launches . | . . . . . . Drone Recoveries . | . . . . . . Exploration | -11 -10 -10 -9 -9 -8 ------------- Run | Scr Mat Min Mat Min Mat Turns Passed 338 | 2 98 10 4 76 148 Spaces Moved 600 | 1 189 20 8 146 236 Core 573 | 1 189 20 8 146 209 Treads . | . . . . . . Legs . | . . . . . . Wheels . | . . . . . . Hover 27 | . . . . . 27 Flight . | . . . . . . Fastest Speed 50 | 50 50 50 50 50 50 Average Speed 50 | 50 50 50 50 50 51 Slowest Speed 150 | 50 50 50 50 50 150 Overloaded Moves . | . . . . . . Propulsion Burnouts . | . . . . . . Robots Hopped . | . . . . . . Cave-ins Triggered . | . . . . . . Exploration Rate (%) 19 | 2 48 8 2 34 24 Regions Visited 5 Branch Regions 2 Pre-discovered Areas . | . . . . . . Known Exits Taken . | . . . . . . Unknown Exits Taken 5 | 1 1 1 1 1 . Scrap Searched 2 | . . . . 2 . Spaces Dug . | . . . . . . Terrain Destroyed . | . . . . . . Melee . | . . . . . . Projectile . | . . . . . . AOE . | . . . . . . Terrain Rammed . | . . . . . . Walls Destroyed . | . . . . . . Machines Disabled . | . . . . . . Actions | -11 -10 -10 -9 -9 -8 --------- Run | Scr Mat Min Mat Min Mat Total 628 | 2 191 19 7 148 261 Wait 14 | . . . . . 14 Move 595 | . 188 19 7 145 236 Hop . | . . . . . . Pick Up 2 | 1 1 . . . . Fast Attach 6 | . 1 . . 1 4 Attach 2 | . . . . 1 1 Detach 1 | . . . . 1 . Swap . | . . . . . . Drop 2 | 1 1 . . . . Fire . | . . . . . . Melee . | . . . . . . Ram 6 | . . . . . 6 Kick . | . . . . . . Crush . | . . . . . . Escape Stasis . | . . . . . . Rewire . | . . . . . . Trap . | . . . . . . Miscellaneous . | . . . . . . Route ------- -11/Scrapyard -10/Materials -10/Mines -9/Materials -9/Mines -8/Materials History --------- Turn | Location | Event 1 | -11/Scrapyard | Released all parts (6) 3 | -11/Scrapyard | Discovered new exit (range 0) 3 | -11/Scrapyard | Entered Materials 93 | -10/Materials | Discovered new exit (range 16) 101 | -10/Materials | Entered Mines 108 | -10/Mines | Discovered new exit (range 8) 111 | -10/Mines | Entered Materials 111 | -9/Materials | Evolved 2 slots: Utility x2 111 | -9/Materials | Discovered new exit (range 7) 115 | -9/Materials | Entered Mines 131 | -9/Mines | Met a Derelict bent on vengeance 173 | -9/Mines | Found the Drone Emporium 174 | -9/Mines | Found Prototype Device 174 | -9/Mines | Identified Splice Drone Bay 189 | -9/Mines | Discovered new exit (range 4) 191 | -9/Mines | Entered Materials 191 | -8/Materials | Evolved 2 slots: Utility x2 316 | -8/Materials | Build established: Mutant 323 | -8/Materials | Core integrity fell below 50% 339 | -8/Materials | Self-destructed Last Messages --------------- 00240_ Massive razor-sharp blades shoot up from within the floor. 00243_ Neutrino Reactor explodes. 00244_ Y-45 Defender suffers critical hit (Burn). 00252_ Lgt. Armor Plating destroyed. 00264_ T-07 Excavator is excavating. 00269_ Slammed into Y-45 Defender. 00271_ Slammed into W-25 Informer. 00285_ O-16 Technician: "IFF HANDSHAKE FAILED. SECURING TERMINAL." 00285_ K-01 Serf collects debris. 00293_ ALERT: Hostiles spotted, dispatching reinforcements to Terminal M001. 00295_ Acquired Adv. Visual Processing Unit. 00303_ K-01 Serf collects debris. 00317_ Acquired Imp. Hover Unit. 00328_ Connecting with Terminal... 00328_ ALERT: Suspicious activity at Terminal M004. Dispatching Investigation squad. 00332_ Acquired Great Maul. 00336_ Imp. Hover Unit destroyed. 00338_ Lgt. Ion Engine destroyed. Map ----- +----------------------------------------------------+ | ?????????????????????????????????????????????????? | | ?????????????????????????????????????????????????? | | ?????????????????????????????????????????????????? | | ?????????????????????????????????????????????????? | | ?????????????????????????????????????????????????? | | ?????????????????????????????????????????????????? | | ?????????????????????????????????????????????????? | | ?????????????????????????????????????????????????? | | ?????????????????????????????????????????????????? | | ?????????????????????????????????????????????????? | | ?????????????????????????????????????????????????? | | ?????????????????????????????????????????????????? | | ?????????????????????????????????????????????????? | | ?????????????????????????????????????????????????? | | ?????????????????????????????????????????????????? | | ?????????????????????????????????????????????????? | | ????????????????????????######???????????????????? | | ????????????????????????# ]]/#???????????????????? | | ????????????????????????# ]] #???????????????????? | | ????????????????????????# ]] #??????? #??????????? | | ????????????????????????# #??????? ??????????? | | ????????????????????????# #??????? ?????????? | | ????????????????????????# g""#??????? ??????????? | | ????????????????????????# gT"#??????# ??????????? | | ????????????????????????# g""#??????# #??????????? | | ????????????????????????#@gg #??????# #??????????? | | ????????????????############g######## #??????????? | | ????????????????# # #??????????? | | ????????????????#" """ # #??????????? | | ????????????????#T """ + ############ | | ????????????????#" """ # | | ????????????????# # | | ????????????????# # | | ????????????????# =[ # | | ????????????????## ####### #+## | | ?????????????????##??##!! # | | ?????????????????????#! # ! | | ?????????????????????#! + | | ?????????????????????#! # | | ?????????????????????#! ##+####### # | | ?????????????????????##!!###+### ?###### ###### | | ??????????????????????###? # T ## ! | | ?????????????????????????# # ## | | ?????????????????????????# * #! ! ## """"" | | ?????????????????????????# # ## """"""""" | | ?????????????????????????# # ## """ """ | | ?????????????????????????# ################### | | ?????????????????????????# #?? #???# | | ?????????????????????????######## #???# | | ???????????????????????????????## #???# = | +----------------------------------------------------+ Best States ------------- Heat Dissipation 31 Energy Generation 10 Energy Capacity 125 Matter Stores 296 Matter Capacity 300 Sight Range 20 Terrain Scan Density 10 Armor Coverage 150 Evasion (%) 53 Item Schematics ----------------- None Robot Schematics ------------------ None Fabricated ------------ Nothing Alien Tech Used ----------------- None Achievements -------------- None Challenges ------------ None Game ------ Seed BehemothMappingSword Manual? 0 Play Time 00:09:24 Cumulative 123.4 hours Start 2022.04.30 @ 00:20:12 End 2022.04.30 @ 00:26:42 Sessions 1 Manual Loads 0 Difficulty Rogue Special Mode None Game No. 159 Rogue 158 Adventurer 0 Explorer 1 Win Type - Total 3 Types 3/0/0/0/0/0/0/0/0 Lore% 58 Gallery% 57 Achievement% 47 Wizard Run 0 Options --------- ASCII 1 Keyboard 0 Movement Vi Keybinds 0 Fullscreen 1 Font 18/SmallcapsGlow Map View 76x50 Tactical HUD 1 Map Filters NONE Filters NONE Steam 1 RUN: c9eb6960-80cd-42c1-a35b-5ac48832020c